Cogmind - Beta 16.1 @@@ ROGUE MODE // 2026.02.19 @ 19:00:50 Player: SunShine214 Result: Destroyed by G-47 Trooper with Particle Gun Performance ------------- Evolutions (3) 1500 Regions Visited (7) 1400 Robots Destroyed (72) 360 Value Destroyed (2629) 2629 Prototype IDs (26) 520 Alien Tech Used (0) 0 Bonus (588) 588 TOTAL SCORE: 6997 Bonus ------- High Alert Combat Kills 88 Entered Garrisons 200 Aligned with FarCom 300 Cogmind --------- Core Integrity 0/700 Matter 136/300 Energy 99/100 System Corruption 15% Temperature Cool (9) Movement Core (50) Location -7/Garrison Parts ------- > --- POWER (1) -------- (None) > --- PROPULSION (4) --- (None) > --- UTILITY (6) ------ Improved Melee Analysis Suite Improved Melee Analysis Suite > --- WEAPON (2) ------- (None) > --- INVENTORY (5) ---- Latent Energy Streamer Flak Gun Remote Datajack Axe Peak State ------------ > --- POWER ------------ Light Nuclear Core > --- PROPULSION ------- Improved VTOL Module Xenon Bombardment Thruster Xenon Bombardment Thruster Xenon Bombardment Thruster > --- UTILITY ---------- Small Storage Unit Advanced Terrain Scan Processor Improved Melee Analysis Suite Improved Melee Analysis Suite Shock Absorption System > --- WEAPON ----------- Improved EM Shotgun Flak Gun > --- INVENTORY -------- Armored Treads Improved Melee Analysis Suite Latent Energy Streamer Plasma Cannon Proton Missile Launcher Mini Grenade Launcher Mini Grenade Launcher [Rating: 45] Favorites ----------- Power Light Ion Engine Engine Light Ion Engine Power Core Light Nuclear Core Propulsion Light Treads Treads Light Treads Leg Carbon-fiber Leg Hover Unit Gravmag System Flight Unit Xenon Bombardment Thruster Utility Small Storage Unit Device Sensor Array Storage Small Storage Unit Processor Improved Melee Analysis Suite Hackware Hacking Suite Protection Improved Light Armor Plating Weapon Mini Grenade Launcher Energy Gun EM Pulse Gun Energy Cannon Plasma Cannon Ballistic Gun Flak Gun Ballistic Cannon Flak Cannon Launcher Mini Grenade Launcher Impact Weapon Mace Slashing Weapon Axe Build | -11 -10 -10 -10 -9 -8 -7 -7 ------- Run | Yrd Mat Min Exi Min Mat Fac Gar Slots Evolved 6 | . . . . . 4 2 . Power . | . . . . . . . . Propulsion 2 | . . . . . 2 . . Utility 4 | . . . . . 2 2 . Weapon . | . . . . . . . . Parts Attached 63 | 7 6 . . . 28 11 11 Power 7 | 1 1 . . . 1 2 2 Engine 2 | 1 1 . . . . . . Core 5 | . . . . . 1 2 2 Reactor . | . . . . . . . . Propulsion 23 | 2 . . . . 14 3 4 Treads 10 | 2 . . . . 8 . . Leg 2 | . . . . . . . 2 Wheel . | . . . . . . . . Hover 2 | . . . . . . . 2 Flight 9 | . . . . . 6 3 . Utility 18 | 2 3 . . . 8 3 2 Device 6 | . 1 . . . 3 1 1 Storage 4 | 2 1 . . . . 1 . Processor 5 | . . . . . 3 1 1 Hackware 1 | . . . . . 1 . . Protection 2 | . 1 . . . 1 . . Artifact . | . . . . . . . . Weapon 15 | 2 2 . . . 5 3 3 Energy Gun 3 | 2 . . . . . 1 . Energy Cannon 1 | . . . . . 1 . . Ballistic Gun 2 | . . . . . 1 1 . Ballistic Cannon 1 | . . . . . 1 . . Launcher 6 | . 2 . . . 1 1 2 Special Weapon . | . . . . . . . . Impact Weapon 1 | . . . . . 1 . . Slashing Weapon 1 | . . . . . . . 1 Piercing Weapon . | . . . . . . . . Special Melee Weapon . | . . . . . . . . Unidentified Prototypes 3 | . . . . . 2 1 . Corrupted Parts 3 | . . . . . 3 . . System Corruption 18 | . . . . . 18 . . Parts Lost 37 | . 1 . . . 19 1 16 Power 3 | . . . . . 1 . 2 Propulsion 19 | . 1 . . . 10 1 7 Utility 9 | . . . . . 5 . 4 Weapon 6 | . . . . . 3 . 3 Highest Loss Streak 11 | . 1 . . . 11 1 11 To Critical Strikes . | . . . . . . . . Average Backups 7 | 2 7 8 7 8 7 7 7 Power . | . . . . . . . . Propulsion 1 | 1 1 3 3 3 3 1 . Utility . | . 1 1 1 1 . 1 . Weapon 4 | . 5 4 3 4 3 5 4 Tool/Special . | . . . . . . . . Unused Backups 12 | . 5 . 1 . 1 2 3 Power . | . . . . . . . . Propulsion 3 | . 2 . . . 1 . . Utility 1 | . . . . . . . 1 Weapon 7 | . 3 . 1 . . 2 1 Tool/Special 1 | . . . . . . . 1 Average Slot Usage (%) 78 | . 89 85 85 85 70 67 78 Engine 5 | . 14 14 14 14 . . . Core 2 | . . . . . 1 6 6 Treads 14 | . 19 14 14 14 23 5 . Flight 4 | . . . . . 1 10 14 Device 9 | . 12 14 14 14 7 4 5 Storage 10 | . 14 14 14 14 9 7 6 Processor 6 | . . . . . 2 15 21 Hackware 1 | . . . . . 5 . . Energy Gun 9 | . 23 14 14 14 1 6 3 Energy Cannon 1 | . . . . . 2 6 . Launcher 5 | . 4 14 14 14 5 . 2 Impact Weapon 1 | . . . . . 4 . . Peak Build Rating 45 | 7 9 8 9 9 27 45 42 Average Rating 18 | 5 7 8 8 9 18 32 36 On Entrance 12 | . 6 8 8 9 9 23 38 Avg Prop Armor Cover (%) 8 | . . . . . 21 1 9 Naked Turns . | . . . . . . . . Heaviest Build 25 | 12 13 12 12 12 22 23 25 Greatest Support 92 | 40 40 20 20 20 92 23 21 Greatest Overweight (x) 3 | . . . . . 3 1 2 Average Overweight (x) . | . . . . . . . . Largest Inventory Capacity 10 | 8 8 8 8 8 8 10 8 Average Capacity 7 | 7 8 8 8 8 8 8 7 Most Carried 8 | 5 8 8 8 8 8 8 8 Average Carried 7 | 2 7 8 7 8 7 7 7 Final Capacity 8 | 8 8 8 8 8 8 8 5 Final Carried 8 | 5 8 8 8 8 8 8 4 Class Distribution -------------------- 85% | Mutant 6% | Scavenger-Mutant 4% | Skirmisher 3% | Scientist-Mutant Dominant Class ---------------- Mutant | -10/Materials Mutant | -10/Mines Mutant | -10/Exiles Skirmisher | -9/Mines Mutant | -8/Materials Mutant | -7/Factory Scavenger-Mutant | -7/Garrison Resources | -11 -10 -10 -10 -9 -8 -7 -7 ----------- Run | Yrd Mat Min Exi Min Mat Fac Gar Matter Collected 1272 | 248 181 . . . 498 55 290 Remotely . | . . . . . . . . Salvage Created 1998 | 149 409 . . . 835 98 507 Parts 128 | 12 31 . . . 38 9 38 Haulers Intercepted 4 | . 2 . . . 2 . . Recyclers Shooed 2 | . . . . . . 2 . Parts Field Recycled . | . . . . . . . . Retrieved Matter . | . . . . . . . . Parts Self-Destructed . | . . . . . . . . Prevented . | . . . . . . . . Parts Restored . | . . . . . . . . Kills | -11 -10 -10 -10 -9 -8 -7 -7 ------- Run | Yrd Mat Min Exi Min Mat Fac Gar Combat Hostiles Destroyed 44 | . 10 . . . 17 4 13 Melee 6 | . . . . . 3 . 3 Guns 2 | . 1 . . . . . 1 Cannons 7 | . . . . . 6 1 . AOE 27 | . 8 . . . 7 3 9 Classes Destroyed 14 | 2 7 . . . 2 . 3 Worker 5 | . 3 . . . 1 1 . Builder 7 | . 1 . . . 6 . . Tunneler 3 | 3 . . . . . . . Hauler 4 | . 2 . . . 2 . . Recycler 2 | 1 . . . . 1 . . Operator 3 | . 2 . . . 1 . . Watcher 4 | . 1 . . . 3 . . Swarmer 10 | . 3 . . . . 3 4 Cutter 3 | . . . . . . . 3 Grunt 23 | . 7 . . . 12 . 4 Duelist 1 | . . . . . . . 1 Sentry 4 | . . . . . 4 . . Hunter 2 | . . . . . 1 1 . Programmer 1 | . . . . . . . 1 Best Kill Streak 9 | 2 6 . . . 8 4 9 Combat Bots Only 9 | . 3 . . . 5 3 9 Max Kills in Single Turn 6 | 1 2 . . . 5 2 6 Gunslinging . | . . . . . . . . Exploded 6 | . 2 . . . 2 2 6 Melee 1 | . . . . . 1 . 1 Uniques/NPCs Destroyed . | . . . . . . . . Combat | -11 -10 -10 -10 -9 -8 -7 -7 -------- Run | Yrd Mat Min Exi Min Mat Fac Gar Hostile Shots Fired 410 | . 44 . . . 212 16 138 Missed 151 | . 19 . . . 61 6 65 Hits 259 | . 25 . . . 151 10 73 Melee 6 | . . . . . . . 6 Projectile 253 | . 25 . . . 151 10 67 AOE 3 | . . . . . . . 3 Critical Strikes 13 | . . . . . 9 1 3 Damage Taken 4499 | . 439 . . . 2535 159 1366 Core 1254 | . 65 . . . 480 28 681 Absorbed by Shields 10 | . . . . . . . 10 Core Remaining (%) 62 | 100 . . . 74 12 . . Volleys Fired 134 | 10 45 . . . 47 7 25 Largest 2 | 2 2 . . . 2 2 2 Hottest 125 | 90 90 . . . 80 125 75 Shots Fired 213 | 20 88 . 1 . 66 12 26 Gun 121 | 20 75 . 1 . 1 5 19 Cannon 36 | . . . . . 32 4 . Launcher 56 | . 13 . . . 33 3 7 Special . | . . . . . . . . Kinetic 16 | . . . . . 16 . . Thermal 69 | 10 39 . . . 16 4 . Explosive 55 | . 13 . . . 33 3 6 Electromagnetic 73 | 10 36 . 1 . 1 5 20 Robot Hit Streak 14 | 3 14 . . . 7 6 9 Robot Miss Streak 11 | 2 3 . . . 11 2 5 Penetration Max . | . . . . . . . . Secondary Targets . | . . . . . . . . Shots Hit Robots 163 | 13 55 . . . 62 10 23 Core Hits 117 | 5 27 . . . 57 7 21 Critical Kills 1 | . . . . . 1 . . Critical Parts Destroyed 3 | . . . . . 3 . . Critical Strikes 12 | 2 6 . . . 4 . . Burn 5 | 1 4 . . . . . . Corrupt 3 | 1 2 . . . . . . Smash 4 | . . . . . 4 . . Melee Attacks 46 | . . . . . 32 . 14 Impact 32 | . . . . . 32 . . Slashing 14 | . . . . . . . 14 Piercing . | . . . . . . . . Sneak Attacks 8 | . . . . . 5 . 3 Combat Hostiles 3 | . . . . . . . 3 Follow-up Attacks . | . . . . . . . . Damage Inflicted 6705 | 178 1684 7 . 1 3222 539 1074 Guns 1141 | 178 680 . . . . 70 213 Cannons 570 | . . . . . 497 73 . Explosions 3696 | . 972 . . . 1872 395 457 Melee 1201 | . . . . . 849 . 352 Ramming 97 | . 32 7 . 1 4 1 52 Kinetic 214 | . . . . . 214 . . Thermal 1040 | 99 385 . . . 337 73 146 Explosive 3322 | . 926 . . . 1818 395 183 Electromagnetic 831 | 79 341 . . . . 70 341 Impact 849 | . . . . . 849 . . Slashing 352 | . . . . . . . 352 Piercing . | . . . . . . . . Highest Corruption 18 | . 2 2 2 2 18 . 15 Average Corruption 7 | . 1 2 2 2 17 . 8 Corruption Purged . | . . . . . . . . Corruption Blocked . | . . . . . . . . Effects 48 | . 7 2 4 . 26 . 9 Message Errors 6 | . 2 . 1 . 1 . 2 Matter Fused 7 | . . 1 1 . 3 . 2 Heat Flow Errors 7 | . 1 . 1 . 5 . . Energy Discharges 9 | . 2 . . . 6 . 1 Parts Rejected 2 | . . . . . 2 . . Data Loss (minor) 6 | . . 1 . . 3 . 2 Data Loss (major) 3 | . 2 . . . 1 . . Misfires 3 | . . . 1 . 2 . . Alerts 2 | . . . . . . . 2 Misdirections 3 | . . . . . 3 . . Overload Shots . | . . . . . . . . Overflow Damage 395 | . 73 . . . 259 24 39 Projectiles . | . . . . . . . . Explosions 129 | . 73 . . . 16 24 16 Melee 266 | . . . . . 243 . 23 Knockbacks 10 | . . 1 . . 9 . . Impact 7 | . . 1 . . 6 . . Kinetic 3 | . . . . . 3 . . Secondary . | . . . . . . . . Self-Inflicted Damage 575 | . 149 . . . 145 . 281 Shots 14 | . 2 . . . 5 . 7 Rammed 14 | . 7 1 . 1 2 3 . Targets Rammed 15 | . 8 1 . 1 2 3 . Kicked . | . . . . . . . . Crushed 1 | . 1 . . . . . . Highest Temperature 321 | 94 321 . 173 . 262 168 16 Average Temperature 66 | 39 83 . 78 . 64 85 6 Received Heat Transfer 1729 | . 171 . . . 1260 . 298 Effects 1 | . 1 . . . . . . Shutdowns 1 | . 1 . . . . . . Siege Activations . | . . . . . . . . Martial Activations . | . . . . . . . . Shielding Activations . | . . . . . . . . Robots Disrupted . | . . . . . . . . Combat Hostiles . | . . . . . . . . Robots Corrupted 5 | . . . . . 5 . . Combat Hostiles 1 | . . . . . 1 . . Parts Fried 9 | . . . . . 8 1 . Impact Corruptions 12 | . . . . . 12 . . Robots Melted 1 | . 1 . . . . . . Combat Hostiles 1 | . 1 . . . . . . Parts Melted 6 | 1 2 . . . 3 . . Heat Transferred 2565 | 370 1345 . . . 600 150 100 Parts Sabotaged . | . . . . . . . . Parts Stolen . | . . . . . . . . Parts Stripped . | . . . . . . . . Power Chain Reactions 4 | . 1 . . . . . 3 Alert | -11 -10 -10 -10 -9 -8 -7 -7 ------- Run | Yrd Mat Min Exi Min Mat Fac Gar Maximum Alert Level 3 | . . . . . 1 . 3 Low Security (%) 62 | 100 100 100 . 100 22 100 7 Level 1 30 | . . . . . 77 . 45 Level 2 7 | . . . . . . . 45 Level 3 . | . . . . . . . 1 Level 4 . | . . . . . . . . Level 5 . | . . . . . . . . High Security . | . . . . . . . . Max Security . | . . . . . . . . Peak Influence 750 | 10 197 21 . . 305 132 750 Initial 121 | . . 21 . . . 121 81 Average 139 | . 47 3 . . 202 41 376 Influence Increases 2384 | 20 543 . . . 814 178 829 Destroy 0b10 Robot/C 880 | . 200 . . . 340 80 260 Destroy 0b10 Robot/NC 145 | 20 45 . . . 70 5 5 Destroy Leader 186 | . 56 . . . 100 20 10 Successful Hack 70 | . 15 . . . 9 4 42 Disable Machine 180 | . 90 . . . 60 30 . Anti-Garrison Action 300 | . . . . . . . 300 Destroy Structure 353 | . 107 . . . 160 9 77 Lose Combat Pursuer 270 | . 30 . . . 75 30 135 Influence Decreases 1634 | 20 489 54 . . 547 329 195 Entered New Map 214 | . . 33 . . . 146 35 Time Decay 919 | 20 329 21 . . 366 183 . Lost Part 351 | . 10 . . . 181 . 160 Purge Threat 150 | . 150 . . . . . . Squads Dispatched 10 | . 2 . . . 6 2 . Investigation 2 | . . . . . 1 1 . Extermination 1 | . . . . . . 1 . Reinforcement 6 | . 2 . . . 4 . . Assault . | . . . . . . . . Garrison 1 | . . . . . 1 . . Intercept . | . . . . . . . . Searches Triggered . | . . . . . . . . Construction Impeded 2 | . . . . . 2 . . Haulers Reinforced . | . . . . . . . . Active Scanning Responses . | . . . . . . . . Cargo Convoy Interrupts . | . . . . . . . . Stealth | -11 -10 -10 -10 -9 -8 -7 -7 --------- Run | Yrd Mat Min Exi Min Mat Fac Gar Distress Signals 5 | . . . . . 5 . . Communications Jammed . | . . . . . . . . Distress Signals . | . . . . . . . . Times Spotted 95 | . 23 . . . 37 7 28 Peak Tracking Total 13 | . 4 . . . 5 4 13 Tactical Retreats 11 | . 2 . . . 4 1 4 Traps | -11 -10 -10 -10 -9 -8 -7 -7 ------- Run | Yrd Mat Min Exi Min Mat Fac Gar Traps Triggered 5 | . 2 . . . . 1 2 Indirectly . | . . . . . . . . Trap Hack Attempts . | . . . . . . . . Triggered . | . . . . . . . . Disarmed . | . . . . . . . . Reprogrammed . | . . . . . . . . Reused . | . . . . . . . . Traps Extracted . | . . . . . . . . Installed . | . . . . . . . . Triggered . | . . . . . . . . Machines | -11 -10 -10 -10 -9 -8 -7 -7 ---------- Run | Yrd Mat Min Exi Min Mat Fac Gar Machines Disabled 15 | . 6 . . . 4 2 3 Max in Single Turn 2 | . 2 . . . 2 1 1 Garrison Relay 3 | . . . . . . . 3 Machines Repaired . | . . . . . . . . Machines Dismantled . | . . . . . . . . Machines Sabotaged . | . . . . . . . . Overloaded Fab Kills . | . . . . . . . . Hacking | -11 -10 -10 -10 -9 -8 -7 -7 --------- Run | Yrd Mat Min Exi Min Mat Fac Gar Machines Accessed 19 | . 4 . 1 . 5 6 3 Terminals 12 | . 4 . . . 3 2 3 Fabricators 1 | . . . . . . 1 . Repair Stations 1 | . . . . . . 1 . Recycling Units . | . . . . . . . . Scanalyzers 2 | . . . . . 1 1 . Garrison Access 2 | . . . . . 1 1 . Total Hacks 38 | . 6 . 1 . 8 13 10 Successful 20 | . 4 . 1 . 5 7 3 Failed 18 | . 2 . . . 3 6 7 Catastrophic 7 | . 1 . . . 2 1 3 Database Lockouts . | . . . . . . . . Manual 5 | . 2 . 1 . 2 . . Terminals 22 | . 6 . . . 4 2 10 Fabricators 2 | . . . . . . 2 . Repair Stations 1 | . . . . . . 1 . Recycling Units . | . . . . . . . . Scanalyzers 9 | . . . . . 3 6 . Garrison Access 3 | . . . . . 1 2 . Terminal Hacks 9 | . 4 . 1 . 1 . 3 Branch Access Points 2 | . 1 . . . 1 . . Emergency Access Points 1 | . . . . . . . 1 Unreport Threat 1 | . 1 . . . . . . Hauler Manifests 1 | . 1 . . . . . . Registered Components 1 | . 1 . . . . . . Garrison Registry 1 | . . . . . . . 1 Patrol Navigation 1 | . . . . . . . 1 Proto ID Catalog 1 | . . . 1 . . . . Fabricator Hacks . | . . . . . . . . Repair Station Hacks . | . . . . . . . . Recycling Unit Hacks . | . . . . . . . . Scanalyzer 9 | . . . . . 3 6 . Retrieve Study 9 | . . . . . 3 6 . Garrison Access Hacks 2 | . . . . . 1 1 . Unlock Access 2 | . . . . . 1 1 . Unauthorized Hacks . | . . . . . . . . Terminals . | . . . . . . . . Fabricators . | . . . . . . . . Repair Stations . | . . . . . . . . Recycling Units . | . . . . . . . . Scanalyzers . | . . . . . . . . Garrison Access . | . . . . . . . . Data Cores Recovered . | . . . . . . . . Used . | . . . . . . . . Hacking Detections 11 | . 1 . . . 1 6 3 Full Trace Events 4 | . . . . . 1 . 3 Feedback Events . | . . . . . . . . Feedback Blocked . | . . . . . . . . Robot Schematics Acquired . | . . . . . . . . Robots Built . | . . . . . . . . Authchips . | . . . . . . . . Time . | . . . . . . . . Total Robot Build Rating . | . . . . . . . . Part Schematics Acquired . | . . . . . . . . Parts Built . | . . . . . . . . Authchips . | . . . . . . . . Time . | . . . . . . . . Total Part Build Rating . | . . . . . . . . Part Studies Acquired 9 | . . . . . 3 6 . Parts Repaired . | . . . . . . . . Time . | . . . . . . . . Parts Recycled . | . . . . . . . . Recycled Matter . | . . . . . . . . Retrieved Matter . | . . . . . . . . Retrieved Components . | . . . . . . . . Parts Scanalyzed . | . . . . . . . . Part Schematics Acquired . | . . . . . . . . Parts Damaged . | . . . . . . . . Bothacking | -11 -10 -10 -10 -9 -8 -7 -7 ------------ Run | Yrd Mat Min Exi Min Mat Fac Gar Used RIF Installer . | . . . . . . . . Robots Hacked . | . . . . . . . . Non-combat . | . . . . . . . . Combat . | . . . . . . . . Robot Hacks Applied . | . . . . . . . . Relay Couplers Released 15 | . . . . . . . 15 Machine Destruction 15 | . . . . . . . 15 Fabnet Peak Effective % . | . . . . . . . . Robots Rewired . | . . . . . . . . Allies Hacked . | . . . . . . . . Hacks Repelled . | . . . . . . . . Allies | -11 -10 -10 -10 -9 -8 -7 -7 -------- Run | Yrd Mat Min Exi Min Mat Fac Gar Total Allies 3 | . . 3 . . . . . Largest Group 3 | . . 3 3 . . . . Highest-Rated Group 80 | . . 80 80 . . . . Highest-Rated Ally 31 | . . 31 31 . . . . Total Orders . | . . . . . . . . Ally Attacks . | . . . . . . . . Total Damage . | . . . . . . . . Kills . | . . . . . . . . Allies Corrupted . | . . . . . . . . Allies Melted . | . . . . . . . . Intel | -11 -10 -10 -10 -9 -8 -7 -7 ------- Run | Yrd Mat Min Exi Min Mat Fac Gar Active Infowar (turns) 1665 | . 901 181 404 32 147 . . Sensors 1665 | . 901 181 404 32 147 . . Robot Analysis Total . | . . . . . . . . Derelict Logs Recovered . | . . . . . . . . Drone Launches . | . . . . . . . . Drone Recoveries . | . . . . . . . . Exploration | -11 -10 -10 -10 -9 -8 -7 -7 ------------- Run | Yrd Mat Min Exi Min Mat Fac Gar Turns Passed 4114 | 126 1013 181 404 32 1109 672 577 Spaces Moved 2546 | 52 518 111 252 20 502 470 621 Core 133 | 1 . . . . 117 . 15 Treads 1558 | 51 518 111 252 20 370 236 . Legs 8 | . . . . . . . 8 Wheels . | . . . . . . . . Hover 176 | . . . . . . . 176 Flight 671 | . . . . . 15 234 422 Fastest Speed 29 | 50 160 160 160 160 37 29 34 Average Speed 126 | 157 160 160 160 160 159 123 49 Slowest Speed 250 | 160 160 160 160 160 220 250 200 Overloaded Moves . | . . . . . . . . Propulsion Burnouts . | . . . . . . . . Robots Hopped 6 | . . . . . 1 4 1 Potential Cave-ins . | . . . . . . . . Cave-ins Triggered . | . . . . . . . . Exploration Rate (%) 36 | 4 70 24 61 11 44 14 60 Regions Visited 7 Branch Regions 3 Pre-discovered Areas . | . . . . . . . . Known Exits Taken 3 | . 1 . . . 1 1 . Unknown Exits Taken 4 | 1 . 1 1 1 . . . Scrap Searched . | . . . . . . . . Spaces Dug 5 | . . . . . 1 . 4 Terrain Destroyed 378 | . 132 . . . 180 9 57 Melee 1 | . . . . . 1 . . Projectile 5 | . . . . . 5 . . AOE 372 | . 132 . . . 174 9 57 Terrain Rammed 1 | . . . . . . . 1 Walls Destroyed 1 | . . . . . . . 1 Machines Disabled . | . . . . . . . . Actions | -11 -10 -10 -10 -9 -8 -7 -7 --------- Run | Yrd Mat Min Exi Min Mat Fac Gar Total 3135 | 73 611 114 253 22 688 538 836 Wait 232 | . 14 3 . . 53 38 124 Move 2527 | 51 517 110 251 19 499 461 619 Hop 6 | . . . . . 1 4 1 Pick Up 35 | 4 10 . 1 1 10 5 4 Fast Attach 38 | 7 1 . . . 19 7 4 Attach 11 | . . . . . 5 1 5 Detach 5 | 1 . . . . 1 2 1 Swap 26 | . 7 . . . 8 4 7 Drop 31 | . 9 . 1 1 11 6 3 Fire 134 | 10 45 . . . 47 7 25 Melee 46 | . . . . . 32 . 14 Ram 1 | . . . . . . . 1 Kick . | . . . . . . . . Crush 15 | . 8 1 . 1 2 3 . Escape Stasis 28 | . . . . . . . 28 Rewire . | . . . . . . . . Trap . | . . . . . . . . Miscellaneous . | . . . . . . . . Route ------- -11/Scrapyard -10/Materials (discovered 4 exits: [*Mat x2] / *Min x2) -10/Mines -10/Exiles -9/Mines -8/Materials (discovered 5 exits: *Fac x3 / Sto / Gar) -7/Factory -7/Garrison (discovered 3 exits: [*Fac x3]) History --------- Turn | Location | Event 52 | -11/Scrapyard | Discovered new exit (range 14) 127 | -11/Scrapyard | Entered Materials 306 | -10/Materials | Build established: Mutant 575 | -10/Materials | Identified exit to Mines 588 | -10/Materials | Discovered new exit (range 16) 1011 | -10/Materials | Discovered new exit (range 15) 1140 | -10/Materials | Entered Mines 1294 | -10/Mines | Received a Mining Laser from a helpful Derelict 1310 | -10/Mines | Deemed a non-threat by the Exiles lab entrance 1310 | -10/Mines | Discovered new exit (range 5) 1321 | -10/Mines | Entered Exiles 1321 | -10/Exiles | Accompanied by 3 allies 1351 | -10/Exiles | Led the pair of lost Derelicts to a safe place 1360 | -10/Exiles | Met 8R-AWN 1387 | -10/Exiles | Met EX-HEX 1432 | -10/Exiles | Met EX-BIN 1456 | -10/Exiles | Aligned with FarCom system 1457 | -10/Exiles | Given EX-Vault access code 1494 | -10/Exiles | Opened EX-Vault 1508 | -10/Exiles | Found Latent Energy Streamer 1541 | -10/Exiles | Warned to stay clear of 0b10 Research branches 1651 | -10/Exiles | Met EX-DEC 1704 | -10/Exiles | Discovered new exit (range 15) 1725 | -10/Exiles | Left Exiles lab with Latent Energy Streamer 1725 | -10/Exiles | Entered Mines 1732 | -9/Mines | Received a Rocket Launcher from a helpful Derelict 1752 | -9/Mines | Discovered new exit (range 4) 1757 | -9/Mines | Entered Materials 1757 | -8/Materials | Evolved 4 slots: Propulsion x2, Utility x2 1862 | -8/Materials | Identified exit to Garrison 1931 | -8/Materials | Garrison activated, responded to threat 1990 | -8/Materials | Discovered new exit (range 16) 2286 | -8/Materials | Discovered new exit (range 16) 2309 | -8/Materials | System corruption reached 10% 2358 | -8/Materials | Identified exit to Factory 2605 | -8/Materials | Discovered exit to Factory (range 11) 2646 | -8/Materials | Core integrity fell below 50% 2693 | -8/Materials | Lost 11 parts (6n3u2w) 2724 | -8/Materials | Identified exit to Storage 2840 | -8/Materials | Core integrity fell below 20% 2866 | -8/Materials | Entered Factory 2866 | -7/Factory | Evolved 2 slots: Utility x2 3538 | -7/Factory | Identified exit to Garrison 3538 | -7/Factory | Entered Garrison 3593 | -7/Garrison | Discovered new exit (range 13) 3692 | -7/Garrison | Discovered new exit (range 9) 3839 | -7/Garrison | Garrison Relay disabled 3843 | -7/Garrison | Garrison Relay disabled 3878 | -7/Garrison | Triggered checkpoint 4028 | -7/Garrison | Garrison Relay disabled 4046 | -7/Garrison | Discovered new exit (range 36) 4046 | -7/Garrison | Discovered new exit (range 19) 4046 | -7/Garrison | Discovered new exit (range 61) 4089 | -7/Garrison | System corruption reached 10% 4096 | -7/Garrison | Core integrity fell below 50% 4109 | -7/Garrison | Core integrity fell below 20% 4115 | -7/Garrison | Destroyed by G-47 Trooper with Particle Gun Last Messages --------------- 04088_ S-27 Virus destroyed. 04088_ Destroyed VTOL Module. 04088_ Chain reaction triggered in Lgt. Nuclear Core+. 04088_ S-27 Virus destroyed. 04091_ Proton Missile Launcher+ destroyed. 04092_ Sml. Storage Unit destroyed. 04093_ System corrupted: Energy discharge (-12). 04093_ Dropped Plasma Cannon. 04093_ Acquired Latent Energy Streamer. 04102_ Knocked back. 04102_ C-17 Slicer knocked back. 04103_ Imp. Melee Analysis Suite destroyed. 04103_ System corrupted by crushing effect (+5). 04104_ Lgt. Nuclear Core+ destroyed. 04104_ Knocked back. 04104_ C-17 Slicer destroyed. 04110_ Mni. Grenade Launcher+ destroyed. 04110_ Destroyed Mni. Grenade Launcher+. 04113_ The unstable cave ceiling collapses. Map ----- +----------------------------------------------------+ | ??????????????# #????????# ## ##### #???????# | | ??????????????##+##????????# ## #???# #######?# | | ???????????????# #?????????# ## #???# ## #?# | | ??????#######??# #?????????# ## #??## ## ###+ | | ??????#"""" #### ########### ##+#### | | ??????#" ^ + ^^ | | ??????#""""^################ ^^ | | ??????#######??????????????########## ## ## | | ??????????????????????????????????### ## ## | | ??????????????????????????????????# | | ??????????????????????????????????# | | ???????????????????????????????#### | | ?????######????????????????????# + | | ?????# #????????????????????# #### ## ## | | ?????# ######################+#### ## ## | | ?????### g | | ???????# #+####### ####### g ^ [ | | ???????# x# #?????# ##????# ### ### %% | | ???????#### #?????# "#????# ###g#?#" == # ##++ | | ??????????# #?????# T#????# # #Y#### [# ## | | ??????????# #?????#""#????# # # #*%="####### | | ??????????# #?????####????# ## # !=#????# | | ??????????# #?????????????# g ] #????# | | ??????????# #?????????????# # ###????# | | ??????????# ############### # = g #??????# | | ??????????# + @ / g * #??????# | | ??????????#### #??????# | | ?????????????# ##### ##### ##??????### | | ?????????????# #?### #???# # # ## #?????????? | | ?????????????# #?#!! #???# T##### ### #?????????? | | ????????????## #?#!! #???# ##????##?# #?????????? | | ????????????# #?###+#???# ########## #?????????? | | ????????????# #??# #???# + #?????????? | | ????????????# #??# #???##### ###### #?????????? | | ????????????# #??####???????# #????# #?????????? | | ????????????## #?????????????# #????# #?????????? | | ???????????### #?????????????# ###??# #?????????? | | ???????????# #?????????????# " #### ###???????? | | ???????????# #?????????????# " +gg + #???????? | | ???????????# #?????????????# " #### ###???????? | | ???????????##+###?????????????# ###??# #?????????? | | ????????##### ################# #????# #?????????? | | ????????# + l #???##^##????????? | | ????????# ####### ##/#??##! !##???????? | | ????????# #????#"""""# ####[ !#???????? | | ????????# #????####### + #???????? | | ???????## " #??????????######!! !!#???????? | | ???????#"" """ #???????????????#######???????? | | ???????#" " #?????????????????????????????? | | ???????#" #?????????????????????????????? | +----------------------------------------------------+ Best States ------------- Heat Dissipation 59 Energy Generation 15 Energy Capacity 160 Matter Stores 300 Matter Capacity 300 Sight Range 16 Robot Scan Range 14 Terrain Scan Density 10 Armor Coverage 150 Resistance: EX 25 Core Shielding 20 Evasion (%) 64 Melee Accuracy 18 Recoil Reduction 4 Offensive Hacking 10 Item Schematics ----------------- None Robot Schematics ------------------ None Fabricated ------------ Nothing Repaired ---------- Nothing Studied --------- Flight Unit | -8/Materials | Hacked Rocket Launcher | -8/Materials | Hacked Lgt. Treads | -8/Materials | Hacked Xenon Bombardment Thruster | -7/Factory | Hacked Lgt. Nuclear Core | -7/Factory | Hacked Flak Gun | -7/Factory | Hacked Mni. Grenade Launcher | -7/Factory | Hacked VTOL Module | -7/Factory | Hacked Proton Missile Launcher | -7/Factory | Hacked Alien Tech Used ----------------- None Achievements -------------- None Challenges ------------ None Game ------ Seed RiotFluxDeflector Manual? 0 Play Time 00:34:27 Cumulative 82.3 hours Start 2026.02.19 @ 18:28:08 End 2026.02.19 @ 19:00:50 Sessions 1 Manual Loads 0 Difficulty Rogue Special Mode None Game No. 136 Rogue 136 Adventurer 0 Explorer 0 Win Type - Total 0 Types 0/0/0/0/0/0/0/0/0/0 Lore% 37 Gallery% 46 Achievement% 31 Wizard Run 0 Options --------- Layout 1 ASCII 0 Keyboard 1 Movement Arrows Keybinds 0 Fullscreen 1 Font 24/Smallcaps Map View 50x35 Zoom Use 0% Tactical HUD 1 Map Filters NONE Filters NONE Steam 1 RUN: 55db1c1b-5f67-4c13-b07a-1c866203dc35